[Event "12th Asrian Memorial 2019"]
[Site "Yerevan"]
[Date "2019.06.13"]
[Round "3.6"]
[White "Babujian, Levon"]
[Black "Vardanian, Haik G."]
[Result "0-1"]
[ECO "E21"]
[WhiteElo "2485"]
[BlackElo "2357"]
[Annotator "ChessBase"]
[PlyCount "124"]
[EventDate "2019.06.11"]
[EventType "swiss"]
[EventCountry "ARM"]
[SourceTitle "playchess.com"]
[Source "ChessBase"]
[SourceQuality "1"]
[TimeControl "40/5400+30:1800+30"]

1. d4 {[%emt 0:00:00]} Nf6 {[%emt 0:00:00]} 2. c4 {[%emt 0:00:00]} e6 {[%emt 0:00:00]} 3. Nc3 {[%emt 0:00:00]} Bb4 {[%emt 0:00:00]} 4. Nf3 {[%emt 0:00:00]} b6 {[%emt 0:00:11]} 5. Bg5 {[%emt 0:00:00]} Bb7 {[%emt 0:00:58]} 6. e3 {[%emt 0:00:30]} h6 {[%emt 0:00:37]} 7. Bh4 {[%emt 0:00:05]} g5 {[%emt 0:00:46]} 8. Bg3 {[%emt 0:00:05]} Ne4 {[%emt 0:00:11]} 9. Nd2 {[%emt 0:00:06]} Nxg3 {[%emt 0:01:50]} 10. hxg3 {[%emt 0:00:17]} Bxc3 {[%emt 0:00:06]} 11. bxc3 {[%emt 0:00:04]} Qe7 {[%emt 0:02:14]} 12. Qa4 {[%emt 0:03:41]} Bc6 {[%emt 0:03:20]} 13. Qb3 {[%emt 0:01:08]} d6 {[%emt 0:01:34]} 14. e4 {[%emt 0:01:33]} Nd7 {[%emt 0:01:06]} 15. O-O-O {[%emt 0:01:07]} O-O-O {[%emt 0:02:23]} 16. Bd3 {[%emt 0:00:13]} h5 {[%emt 0:01:45]} 17. Nf1 {[%emt 0:01:42]} g4 {[%emt 0:07:06]} 18. Ne3 {[%emt 0:05:54]} Qg5 19. Kb1 {[%emt 0:02:32]} Nf6 {[%emt 0:02:16]} 20. Qc2 {[%emt 0:00:30]} Kb8 {[%emt 0:03:19]} 21. Ka1 {[%emt 0:00:52]} h4 {[%emt 0:08:47]} 22. gxh4 {[%emt 0:00:48]} Rxh4 {[%emt 0:00:30]} 23. Rhe1 {[%emt 0:02:00]} g3 {[%emt 0:05:03]} 24. f3 {[%emt 0:00:30]} Nh5 {[%emt 0:00:51]} 25. c5 {[%emt 0:07:40]} dxc5 {[%emt 0:02:35]} 26. Ba6 {[%emt 0:01:27]} Nf4 {[%emt 0:04:52]} 27. Nc4 {[%emt 0:01:08]} Ng6 {[%emt 0:09:00]} 28. Na5 {[%emt 0:20:16]} Ba8 {[%emt 0:02:24]} 29. Qa4 {[%emt 0:01:41]} Ne7 {[%emt 0:01:19]} 30. dxc5 {[%emt 0:03:48]} Rhh8 {[%emt 0:00:52]} 31. e5 {[%emt 0:02:27]} Rxd1+ {[%emt 0:01:36]} 32. Qxd1 {[%emt 0:06:37]} Nc6 {[%emt 0:01:46]} 33. Nc4 {[%emt 0:00:47]} Qe7 {[%emt 0:01:11]} 34. cxb6 {[%emt 0:03:15]} axb6 {[%emt 0:00:08]} 35. Qe2 {[%emt 0:06:45]} Qc5 {[%emt 0:01:47]} 36. Qe3 {[%emt 0:02:59]} Qxe3 {[%emt 0:01:13]} 37. Rxe3 {[%emt 0:00:24]} Rh2 {[%emt 0:02:05]} 38. Re2 {[%emt 0:00:20]} Ne7 {[%emt 0:01:33]} 39. Ne3 {[%emt 0:00:13]} Nd5 {[%emt 0:01:10]} 40. Nxd5 {[%emt 0:00:00]} Bxd5 {[%emt 0:00:00]} 41. Bd3 {[%emt 0:08:15]} Bxf3 {[%emt 0:01:49]} 42. Re3 {[%emt 0:00:21]} Bxg2 {[%emt 0:01:26]} 43. Rxg3 {[%emt 0:00:06]} Bd5 {[%emt 0:01:35]} 44. c4 {[%emt 0:00:08]} Bc6 {[%emt 0:00:48]} 45. Rg8+ {[%emt 0:01:32]} Kb7 {[%emt 0:00:12]} 46. Rf8 {[%emt 0:00:17]} Rd2 {[%emt 0:03:33]} 47. Bb1 {[%emt 0:02:52]} Rd4 {[%emt 0:00:44]} 48. Rxf7 {[%emt 0:00:08]} Rxc4 {[%emt 0:00:14]} 49. Rf2 {[%emt 0:01:49]} Bd5 {[%emt 0:02:13]} 50. Bc2 {[%emt 0:00:18]} Rc3 {[%emt 0:01:44]} 51. Re2 {[%emt 0:00:24]} b5 {[%emt 0:00:08]} 52. Kb2 {[%emt 0:00:18]} b4 {[%emt 0:00:24]} 53. Ba4 {[%emt 0:05:46]} Kb6 {[%emt 0:00:45]} 54. Bd7 {[%emt 0:00:22]} c5 {[%emt 0:01:09]} 55. Rd2 {[%emt 0:01:35]} Kc7 {[%emt 0:02:28]} 56. Bb5 {[%emt 0:00:06]} c4 {[%emt 0:01:26]} 57. Re2 {[%emt 0:06:56]} Kb6 {[%emt 0:00:31]} 58. Ba4 {[%emt 0:00:11]} Ra3 {[%emt 0:00:37]} 59. Bd7 {[%emt 0:02:29]} Kc5 {[%emt 0:00:28]} 60. Kb1 {[%emt 0:00:09]} c3 {[%emt 0:00:40]} 61. Rh2 {[%emt 0:00:30]} Be4+ {[%emt 0:00:15]} 62. Kc1 {[%emt 0:00:35]} b3 {[%emt 0:00:17]} 0-1

[Event "12th Asrian Memorial 2019"]
[Site "Yerevan"]
[Date "2019.06.13"]
[Round "3.7"]
[White "Mikaelyan, Arman"]
[Black "Der Manuelian, Haik"]
[Result "1/2-1/2"]
[ECO "A11"]
[WhiteElo "2453"]
[BlackElo "2309"]
[Annotator "ChessBase"]
[PlyCount "176"]
[EventDate "2019.06.11"]
[EventType "swiss"]
[EventCountry "ARM"]
[SourceTitle "playchess.com"]
[Source "ChessBase"]
[SourceQuality "1"]
[TimeControl "40/5400+30:1800+30"]

1. c4 {[%emt 0:00:00]} c6 {[%emt 0:00:00]} 2. Nf3 {[%emt 0:02:11]} d5 {[%emt 0:00:00]} 3. g3 {[%emt 0:00:14]} Nf6 {[%emt 0:01:30]} 4. Bg2 {[%emt 0:02:03]} g6 {[%emt 0:01:46]} 5. b3 {[%emt 0:00:41]} Bg7 {[%emt 0:00:47]} 6. Bb2 {[%emt 0:00:09]} O-O {[%emt 0:00:55]} 7. O-O {[%emt 0:00:10]} Bg4 {[%emt 0:03:53]} 8. d3 {[%emt 0:00:43]} Nbd7 {[%emt 0:02:46]} 9. Nbd2 {[%emt 0:00:07]} Ne8 {[%emt 0:04:37]} 10. Bxg7 {[%emt 0:04:37]} Kxg7 {[%emt 0:04:17]} 11. b4 {[%emt 0:00:43]} Nef6 {[%emt 0:02:15]} 12. Qb3 {[%emt 0:01:01]} Bxf3 {[%emt 0:11:48]} 13. Bxf3 {[%emt 0:01:30]} e6 {[%emt 0:04:37]} 14. Rfc1 {[%emt 0:00:17]} Qb6 {[%emt 0:02:15]} 15. Rab1 {[%emt 0:01:58]} Kg8 {[%emt 0:02:43]} 16. Qc3 {[%emt 0:01:14]} e5 {[%emt 0:05:40]} 17. b5 {[%emt 0:08:08]} d4 {[%emt 0:01:41]} 18. Qa1 {[%emt 0:04:36]} c5 {[%emt 0:00:30]} 19. a4 {[%emt 0:00:05]} Rab8 {[%emt 0:00:36]} 20. a5 {[%emt 0:00:16]} Qd6 {[%emt 0:02:16]} 21. Re1 {[%emt 0:00:46]} Rfd8 {[%emt 0:03:53]} 22. e3 {[%emt 0:03:40]} Nf8 {[%emt 0:03:47]} 23. b6 {[%emt 0:00:16]} a6 {[%emt 0:00:36]} 24. exd4 {[%emt 0:01:26]} cxd4 {[%emt 0:02:55]} 25. c5 {[%emt 0:14:26]} Qxc5 {[%emt 0:00:05]} 26. Rbc1 {[%emt 0:00:20]} Qe7 {[%emt 0:01:38]} 27. Nc4 {[%emt 0:05:54]} N8d7 {[%emt 0:02:40]} 28. Qxd4 {[%emt 0:01:13]} exd4 {[%emt 0:13:18]} 29. Rxe7 {[%emt 0:00:14]} Kf8 {[%emt 0:00:05]} 30. Re2 {[%emt 0:00:29]} Rdc8 {[%emt 0:01:21]} 31. g4 {[%emt 0:09:19]} Rc5 {[%emt 0:01:01]} 32. Rce1 {[%emt 0:01:58]} Nd5 {[%emt 0:05:02]} 33. Re4 {[%emt 0:03:35]} Nb4 {[%emt 0:00:19]} 34. Rxd4 {[%emt 0:01:01]} Nc2 {[%emt 0:00:27]} 35. Rxd7 {[%emt 0:00:07]} Nxe1 {[%emt 0:00:06]} 36. Bd5 {[%emt 0:01:12]} Ke8 {[%emt 0:04:48]} 37. Ne5 {[%emt 0:17:46]} Nf3+ {[%emt 0:06:30]} 38. Bxf3 {[%emt 0:00:17]} Rxe5 {[%emt 0:00:07]} 39. Rc7 {[%emt 0:01:31]} Rxa5 {[%emt 0:02:00]} 40. Bxb7 {[%emt 0:00:00]} Kf8 {[%emt 0:00:00]} 41. Kg2 {[%emt 0:08:16]} Rb5 {[%emt 0:10:30]} 42. Bxa6 {[%emt 0:00:34]} R5xb6 {[%emt 0:00:04]} 43. Bc4 {[%emt 0:00:07]} R8b7 {[%emt 0:00:45]} 44. Rc8+ {[%emt 0:02:37]} Kg7 {[%emt 0:00:02]} 45. Re8 {[%emt 0:02:36]} Rb2 {[%emt 0:02:41]} 46. g5 {[%emt 0:00:53]} Rc7 {[%emt 0:04:39]} 47. Re5 {[%emt 0:02:31]} f6 {[%emt 0:01:33]} 48. gxf6+ {[%emt 0:00:03]} Kxf6 {[%emt 0:00:06]} 49. Re6+ {[%emt 0:00:39]} Kf5 {[%emt 0:03:46]} 50. Re8 {[%emt 0:00:38]} Rc6 {[%emt 0:01:51]} 51. Kg3 {[%emt 0:00:29]} Rd2 {[%emt 0:04:55]} 52. Re7 {[%emt 0:02:09]} h6 {[%emt 0:02:21]} 53. h4 {[%emt 0:00:25]} Rd1 {[%emt 0:01:39]} 54. Rh7 {[%emt 0:02:33]} h5 {[%emt 0:02:50]} 55. f3 {[%emt 0:08:29]} Rf6 {[%emt 0:02:30]} 56. Rd7 {[%emt 0:02:06]} Rg1+ {[%emt 0:01:40]} 57. Kf2 {[%emt 0:00:42]} Rc1 {[%emt 0:00:27]} 58. Kg3 {[%emt 0:01:35]} Rb6 {[%emt 0:00:18]} 59. Rf7+ {[%emt 0:00:44]} Ke5 {[%emt 0:00:16]} 60. Re7+ {[%emt 0:00:33]} Kf6 {[%emt 0:00:23]} 61. Rh7 {[%emt 0:01:22]} Ke5 {[%emt 0:00:34]} 62. Re7+ {[%emt 0:00:15]} Kd4 {[%emt 0:00:24]} 63. Rd7+ {[%emt 0:01:21]} Ke3 {[%emt 0:00:58]} 64. Re7+ {[%emt 0:00:07]} Kd2 {[%emt 0:00:08]} 65. Rf7 {[%emt 0:01:38]} Rd6 {[%emt 0:00:26]} 66. Rf4 {[%emt 0:01:14]} Rg1+ {[%emt 0:00:49]} 67. Kf2 {[%emt 0:00:12]} Re1 {[%emt 0:00:31]} 68. d4 {[%emt 0:01:43]} Rb1 {[%emt 0:00:37]} 69. Bf7 {[%emt 0:01:48]} Rb4 {[%emt 0:00:28]} 70. Kg3 {[%emt 0:04:52]} Kd3 {[%emt 0:00:41]} 71. Ba2 {[%emt 0:01:45]} Rdxd4 {[%emt 0:00:35]} 72. Rf6 {[%emt 0:01:21]} Rxh4 {[%emt 0:00:03]} 73. Bb1+ {[%emt 0:00:41]} Rxb1 {[%emt 0:00:56]} 74. Kxh4 {[%emt 0:00:06]} Rg1 {[%emt 0:00:02]} 75. Re6 {[%emt 0:00:28]} Rg2 {[%emt 0:00:45]} 76. Re1 {[%emt 0:01:15]} Kd2 {[%emt 0:00:37]} 77. Re6 {[%emt 0:00:22]} Rg1 {[%emt 0:00:24]} 78. Re5 {[%emt 0:00:23]} Kd3 {[%emt 0:00:41]} 79. Re4 {[%emt 0:00:42]} Rg2 {[%emt 0:00:25]} 80. Re1 {[%emt 0:00:51]} Re2 {[%emt 0:00:30]} 81. Rg1 {[%emt 0:00:30]} Re6 {[%emt 0:00:06]} 82. Kg5 {[%emt 0:00:37]} Ke2 {[%emt 0:00:18]} 83. f4 {[%emt 0:00:07]} Kf3 {[%emt 0:01:05]} 84. f5 {[%emt 0:01:58]} gxf5 {[%emt 0:00:05]} 85. Kxf5 {[%emt 0:00:14]} Re8 {[%emt 0:00:46]} 86. Rh1 {[%emt 0:00:20]} Rh8 {[%emt 0:00:16]} 87. Kg5 {[%emt 0:00:08]} Rg8+ {[%emt 0:00:06]} 88. Kh4 {[%emt 0:00:12]} Rg4+ {[%emt 0:00:33]} 1/2-1/2

[Event "12th Asrian Memorial 2019"]
[Site "Yerevan"]
[Date "2019.06.13"]
[Round "3.8"]
[White "Gevorgyan, Albert"]
[Black "Hayrapetyan, Hovik"]
[Result "0-1"]
[ECO "D37"]
[WhiteElo "2088"]
[BlackElo "2449"]
[Annotator "NA"]
[PlyCount "82"]
[EventDate "2019.06.11"]
[EventType "swiss"]
[EventCountry "ARM"]
[SourceTitle "playchess.com"]
[Source "ChessBase"]
[SourceQuality "1"]
[TimeControl "40/5400+30:1800+30"]

1. Nf3 {[%emt 0:00:00]} d5 {[%emt 0:01:06]} 2. d4 {[%emt 0:01:25]} Nf6 {[%emt 0:00:15]} 3. c4 {[%emt 0:00:10]} e6 {[%emt 0:00:51]} 4. Nc3 {[%emt 0:00:26]} Be7 {[%emt 0:03:31]} 5. g3 {[%emt 0:00:39]} O-O {[%emt 0:00:21]} 6. Bg2 {[%emt 0:00:10]} Nbd7 {[%emt 0:04:15]} 7. O-O {[%emt 0:18:19]} dxc4 {[%emt 0:04:46]} 8. e4 {[%emt 0:11:43]} a6 {[%emt 0:10:40]} 9. a4 {[%emt 0:02:22]} Rb8 {[%emt 0:00:51]} 10. a5 {[%emt 0:14:18]} b5 {[%emt 0:11:13]} 11. axb6 {[%emt 0:01:10]} Nxb6 {[%emt 0:01:27]} 12. Qe2 {[%emt 0:02:16]} Bb7 {[%emt 0:11:49]} 13. Rd1 {[%emt 0:01:34]} Qe8 {[%emt 0:04:03]} 14. Bf4 {[%emt 0:04:25]} Rc8 {[%emt 0:00:23]} 15. Ne5 {[%emt 0:04:05]} Bd6 {[%emt 0:07:25]} 16. Nxc4 {[%emt 0:03:04]} Nxc4 {[%emt 0:01:09]} 17. Qxc4 {[%emt 0:00:09]} Bxf4 {[%emt 0:00:02]} 18. gxf4 {[%emt 0:00:06]} Nh5 {[%emt 0:00:33]} 19. Ne2 {[%emt 0:03:23]} Qe7 {[%emt 0:05:07]} 20. Qb3 {[%emt 0:07:17]} c5 {[%emt 0:01:41]} 21. Qh3 {[%emt 0:01:08]} g6 {[%emt 0:06:19]} 22. Bf3 {[%emt 0:05:07]} Ng7 {[%emt 0:02:44]} 23. e5 {[%emt 0:06:37]} cxd4 {[%emt 0:00:46]} 24. Rxd4 {[%emt 0:02:10]} Rc2 {[%emt 0:01:09]} 25. Nc3 {[%emt 0:04:09]} Rxb2 {[%emt 0:02:48]} 26. Bxb7 {[%emt 0:00:59]} Qxb7 {[%emt 0:00:23]} 27. Ne4 {[%emt 0:00:29]} Nh5 {[%emt 0:01:18]} 28. Rad1 {[%emt 0:02:14]} Rb1 {[%emt 0:01:42]} 29. Qf3 {[%emt 0:02:14]} Kg7 {[%emt 0:01:49]} 30. Rxb1 {[%emt 0:00:13]} Qxb1+ {[%emt 0:00:08]} 31. Rd1 {[%emt 0:00:02]} Qb4 {[%emt 0:03:40]} 32. Rd7 {[%emt 0:01:47]} Rc8 {[%emt 0:02:17]} 33. Ng5 {[%emt 0:00:49]} Kg8 {[%emt 0:03:36]} 34. Rxf7 {[%emt 0:00:36]} Qb1+ {[%emt 0:02:44]} 35. Kg2 {[%emt 0:00:10]} h6 {[%emt 0:00:07]} 36. Rb7 {[%emt 0:01:43]} Nxf4+ {[%emt 0:00:26]} 37. Kg3 {[%emt 0:00:12]} Qg1+ {[%emt 0:00:26]} 38. Kxf4 {[%emt 0:00:06]} hxg5+ {[%emt 0:01:57]} 39. Ke4 {[%emt 0:00:11]} Rc4+ {[%emt 0:00:04]} 40. Kd3 {[%emt 0:00:00]} Qf1+ {[%emt 0:00:00]} 41. Kd2 {[%emt 0:00:36]} Qc1+ {[%emt 0:00:10]} 0-1

[Event "12th Asrian Memorial 2019"]
[Site "Yerevan"]
[Date "2019.06.13"]
[Round "3.11"]
[White "Vaganian, Rafael A"]
[Black "Gevorgyan, Maria"]
[Result "1-0"]
[ECO "A38"]
[WhiteElo "2526"]
[BlackElo "2293"]
[Annotator "ChessBase"]
[PlyCount "115"]
[EventDate "2019.06.11"]
[EventType "swiss"]
[EventCountry "ARM"]
[SourceTitle "playchess.com"]
[Source "ChessBase"]
[SourceQuality "1"]
[TimeControl "40/5400+30:1800+30"]

1. Nf3 {[%emt 0:00:14]} Nf6 {[%emt 0:00:00]} 2. g3 {[%emt 0:00:13]} g6 {[%emt 0:00:00]} 3. Bg2 {[%emt 0:00:11]} Bg7 {[%emt 0:00:00]} 4. c4 {[%emt 0:00:44]} c5 {[%emt 0:00:02]} 5. Nc3 {[%emt 0:00:30]} Nc6 {[%emt 0:00:06]} 6. d4 {[%emt 0:00:10]} cxd4 {[%emt 0:00:06]} 7. Nxd4 {[%emt 0:00:06]} O-O {[%emt 0:00:15]} 8. O-O {[%emt 0:00:16]} Qa5 {[%emt 0:00:12]} 9. Nb3 {[%emt 0:02:33]} Qh5 {[%emt 0:00:12]} 10. e4 {[%emt 0:04:20]} d6 {[%emt 0:00:12]} 11. Qxh5 {[%emt 0:06:45]} Nxh5 {[%emt 0:00:08]} 12. c5 {[%emt 0:02:12]} a5 {[%emt 0:18:05]} 13. Na4 {[%emt 0:08:17]} Be6 {[%emt 0:03:34]} 14. Rd1 {[%emt 0:01:10]} Rfd8 {[%emt 0:03:21]} 15. Be3 {[%emt 0:02:50]} Nb4 {[%emt 0:12:01]} 16. Nb6 {[%emt 0:13:05]} Nc2 {[%emt 0:10:08]} 17. Nxa8 {[%emt 0:00:51]} Nxa1 {[%emt 0:01:03]} 18. Nxa1 {[%emt 0:14:43]} Rxa8 {[%emt 0:01:08]} 19. e5 {[%emt 0:00:06]} dxc5 {[%emt 0:03:13]} 20. f4 {[%emt 0:00:36]} f6 {[%emt 0:06:31]} 21. Bd5 {[%emt 0:07:37]} Bxd5 {[%emt 0:06:36]} 22. Rxd5 {[%emt 0:00:15]} fxe5 {[%emt 0:09:02]} 23. fxe5 {[%emt 0:00:20]} Bh8 {[%emt 0:00:34]} 24. Rxc5 {[%emt 0:02:55]} Ng7 {[%emt 0:02:20]} 25. Nb3 {[%emt 0:04:49]} Nf5 {[%emt 0:07:29]} 26. Bf2 {[%emt 0:00:26]} a4 {[%emt 0:02:26]} 27. Nd2 {[%emt 0:00:25]} Kf7 {[%emt 0:03:20]} 28. Nf3 {[%emt 0:00:33]} h6 {[%emt 0:01:28]} 29. Rc7 {[%emt 0:01:10]} g5 {[%emt 0:05:18]} 30. g4 {[%emt 0:03:21]} Nh4 {[%emt 0:00:06]} 31. Nxh4 {[%emt 0:01:41]} gxh4 {[%emt 0:00:01]} 32. Bxh4 {[%emt 0:00:28]} Re8 {[%emt 0:01:07]} 33. Rxb7 {[%emt 0:05:26]} Bxe5 {[%emt 0:00:19]} 34. Kg2 {[%emt 0:01:35]} Ke6 {[%emt 0:02:18]} 35. Ra7 {[%emt 0:03:33]} Bxb2 {[%emt 0:01:03]} 36. Rxa4 {[%emt 0:00:47]} Kd5 {[%emt 0:00:04]} 37. Ra5+ {[%emt 0:00:31]} Ke4 {[%emt 0:01:16]} 38. Ra6 {[%emt 0:00:14]} e5 {[%emt 0:01:29]} 39. Rxh6 {[%emt 0:00:09]} Ra8 {[%emt 0:00:02]} 40. Rf6 {[%emt 0:00:00]} Bd4 {[%emt 0:00:00]} 41. g5 {[%emt 0:05:22]} Rxa2+ {[%emt 0:16:04]} 42. Kh3 {[%emt 0:00:42]} Kd3 {[%emt 0:15:15]} 43. g6 {[%emt 0:00:24]} Ra8 {[%emt 0:00:08]} 44. Rd6 {[%emt 0:01:12]} Rg8 {[%emt 0:02:22]} 45. Kg4 {[%emt 0:04:05]} Ke4 {[%emt 0:00:44]} 46. Bg3 {[%emt 0:00:39]} Be3 {[%emt 0:00:31]} 47. Re6 {[%emt 0:00:33]} Bd4 {[%emt 0:00:01]} 48. h4 {[%emt 0:00:22]} Kd5 {[%emt 0:00:16]} 49. Ra6 {[%emt 0:00:08]} e4 {[%emt 0:01:28]} 50. h5 {[%emt 0:00:15]} Bc3 {[%emt 0:00:43]} 51. Rd6+ {[%emt 0:01:26]} Kc5 {[%emt 0:00:01]} 52. h6 {[%emt 0:00:25]} e3 {[%emt 0:00:44]} 53. h7 {[%emt 0:01:33]} Re8 {[%emt 0:00:01]} 54. Rd7 {[%emt 0:00:19]} Re6 {[%emt 0:01:28]} 55. Kh5 {[%emt 0:01:34]} e2 {[%emt 0:00:18]} 56. Rc7+ {[%emt 0:00:07]} Kb4 {[%emt 0:00:48]} 57. Rxc3 {[%emt 0:00:14]} Re5+ {[%emt 0:00:31]} 58. Kh6 1-0

[Event "12th Asrian Memorial 2019"]
[Site "Yerevan"]
[Date "2019.06.13"]
[Round "3.12"]
[White "Gholami Orimi, Mahdi"]
[Black "Melkonyan, Arshak"]
[Result "1-0"]
[ECO "D11"]
[WhiteElo "2445"]
[BlackElo "1986"]
[Annotator "NA"]
[PlyCount "91"]
[EventDate "2019.06.11"]
[EventType "swiss"]
[EventCountry "ARM"]
[SourceTitle "playchess.com"]
[Source "ChessBase"]
[SourceQuality "1"]
[TimeControl "40/5400+30:1800+30"]

1. d4 {[%emt 0:00:00]} d5 {[%emt 0:00:00]} 2. c4 {[%emt 0:00:00]} c6 {[%emt 0:00:00]} 3. Nf3 {[%emt 0:00:00]} e6 {[%emt 0:00:54]} 4. e3 {[%emt 0:00:55]} f5 {[%emt 0:00:15]} 5. Bd3 {[%emt 0:01:06]} Nf6 {[%emt 0:00:06]} 6. O-O {[%emt 0:00:37]} Bd6 {[%emt 0:00:05]} 7. b3 {[%emt 0:00:17]} Qe7 {[%emt 0:00:06]} 8. Nc3 {[%emt 0:00:19]} O-O {[%emt 0:00:17]} 9. Bb2 {[%emt 0:00:03]} Ne4 {[%emt 0:00:38]} 10. Ne2 {[%emt 0:01:19]} Nd7 {[%emt 0:02:12]} 11. Ne5 {[%emt 0:00:04]} Nxe5 {[%emt 0:06:54]} 12. dxe5 {[%emt 0:00:01]} Bc7 {[%emt 0:01:08]} 13. Qc2 {[%emt 0:00:02]} Rd8 {[%emt 0:03:11]} 14. Nf4 {[%emt 0:07:27]} g6 {[%emt 0:19:02]} 15. f3 {[%emt 0:16:24]} Ng5 {[%emt 0:01:06]} 16. Ne2 {[%emt 0:03:05]} Nf7 {[%emt 0:01:35]} 17. f4 {[%emt 0:00:58]} Bb6 {[%emt 0:03:19]} 18. Nd4 {[%emt 0:02:19]} Bd7 {[%emt 0:01:46]} 19. cxd5 {[%emt 0:08:39]} cxd5 {[%emt 0:04:15]} 20. Qe2 {[%emt 0:09:45]} Rdc8 {[%emt 0:01:17]} 21. Kh1 {[%emt 0:02:38]} Ba5 {[%emt 0:02:38]} 22. h3 {[%emt 0:02:25]} Bc3 {[%emt 0:02:12]} 23. Rac1 {[%emt 0:00:14]} Bxb2 {[%emt 0:00:21]} 24. Qxb2 {[%emt 0:00:02]} Nd8 {[%emt 0:01:38]} 25. a3 {[%emt 0:00:55]} a6 {[%emt 0:00:17]} 26. b4 {[%emt 0:00:15]} Ba4 {[%emt 0:01:47]} 27. Ne2 {[%emt 0:09:00]} Bd7 {[%emt 0:05:45]} 28. Qb3 {[%emt 0:06:33]} Nc6 {[%emt 0:03:24]} 29. Rc3 {[%emt 0:05:08]} Na7 {[%emt 0:01:11]} 30. Rfc1 {[%emt 0:01:19]} Qe8 {[%emt 0:02:10]} 31. Nd4 {[%emt 0:01:43]} Nb5 {[%emt 0:01:13]} 32. Bxb5 {[%emt 0:02:17]} Bxb5 {[%emt 0:00:12]} 33. Qb2 {[%emt 0:03:50]} Bc4 {[%emt 0:06:04]} 34. g4 {[%emt 0:01:07]} b5 {[%emt 0:02:09]} 35. Rg1 {[%emt 0:03:18]} Kh8 {[%emt 0:09:08]} 36. gxf5 {[%emt 0:04:54]} gxf5 {[%emt 0:00:11]} 37. e4 {[%emt 0:01:10]} dxe4 {[%emt 0:01:37]} 38. Nxf5 {[%emt 0:00:22]} Qh5 {[%emt 0:02:11]} 39. Nd6 {[%emt 0:04:26]} Rg8 {[%emt 0:00:25]} 40. Rcg3 {[%emt 0:00:00]} Rxg3 {[%emt 0:00:00]} 41. Rxg3 {[%emt 0:00:40]} Rf8 {[%emt 0:05:06]} 42. Qf2 {[%emt 0:15:14]} Qh6 {[%emt 0:02:45]} 43. Qa7 {[%emt 0:00:36]} Rxf4 {[%emt 0:05:08]} 44. Nf7+ {[%emt 0:00:47]} Rxf7 {[%emt 0:00:05]} 45. Qxf7 {[%emt 0:00:07]} Qc1+ {[%emt 0:00:06]} 46. Rg1 {[%emt 0:00:12]} 1-0

[Event "12th Asrian Memorial 2019"]
[Site "Yerevan"]
[Date "2019.06.13"]
[Round "3.13"]
[White "Karapetyan, Alexander"]
[Black "Sargsyan, Tigran R."]
[Result "0-1"]
[ECO "B28"]
[WhiteElo "1339"]
[BlackElo "2367"]
[Annotator "NA"]
[PlyCount "82"]
[EventDate "2019.06.11"]
[EventType "swiss"]
[EventCountry "ARM"]
[SourceTitle "playchess.com"]
[Source "ChessBase"]
[SourceQuality "1"]
[TimeControl "40/5400+30:1800+30"]

1. e4 {[%emt 0:00:00]} c5 {[%emt 0:00:00]} 2. Nf3 {[%emt 0:00:00]} a6 {[%emt 0:00:11]} 3. c4 {[%emt 0:03:45]} e6 {[%emt 0:11:08]} 4. d4 {[%emt 0:05:28]} cxd4 {[%emt 0:00:21]} 5. Nxd4 {[%emt 0:00:09]} Nf6 {[%emt 0:00:15]} 6. Nc3 {[%emt 0:01:39]} Qc7 {[%emt 0:05:15]} 7. a3 {[%emt 0:04:41]} b6 {[%emt 0:07:32]} 8. Be2 {[%emt 0:05:48]} Bb7 {[%emt 0:01:15]} 9. f3 {[%emt 0:00:25]} d6 {[%emt 0:13:30]} 10. Be3 {[%emt 0:03:59]} Be7 {[%emt 0:01:15]} 11. O-O {[%emt 0:00:44]} O-O {[%emt 0:00:13]} 12. Rc1 {[%emt 0:02:10]} Nbd7 {[%emt 0:05:50]} 13. Qc2 {[%emt 0:33:40]} Rfe8 {[%emt 0:08:22]} 14. f4 {[%emt 0:04:45]} Bf8 {[%emt 0:02:34]} 15. Qb1 {[%emt 0:07:29]} Rac8 {[%emt 0:09:07]} 16. b3 {[%emt 0:03:11]} Qb8 {[%emt 0:01:31]} 17. Bf3 {[%emt 0:01:50]} Qa8 {[%emt 0:02:47]} 18. Rfe1 {[%emt 0:01:47]} d5 {[%emt 0:07:31]} 19. cxd5 {[%emt 0:05:10]} Bxa3 {[%emt 0:02:54]} 20. dxe6 {[%emt 0:03:43]} Bxc1 {[%emt 0:03:24]} 21. exd7 {[%emt 0:02:38]} Bxe3+ {[%emt 0:00:21]} 22. Rxe3 {[%emt 0:00:08]} Nxd7 {[%emt 0:00:06]} 23. Nf5 {[%emt 0:00:45]} Re6 {[%emt 0:09:34]} 24. Qd1 {[%emt 0:02:15]} Rd8 {[%emt 0:01:43]} 25. Qe1 {[%emt 0:03:15]} Nc5 {[%emt 0:00:42]} 26. Qg3 {[%emt 0:00:19]} g6 {[%emt 0:00:09]} 27. Nh6+ Kf8 {[%emt 0:00:30]} 28. f5 {[%emt 0:02:28]} Red6 {[%emt 0:00:30]} 29. e5 {[%emt 0:00:30]} Rd3 {[%emt 0:00:22]} 30. Bxb7 {[%emt 0:00:41]} Qxb7 {[%emt 0:00:22]} 31. e6 {[%emt 0:01:02]} Rxe3 {[%emt 0:02:13]} 32. Qxe3 {[%emt 0:00:07]} fxe6 {[%emt 0:01:04]} 33. b4 {[%emt 0:00:16]} exf5 {[%emt 0:01:36]} 34. bxc5 {[%emt 0:00:11]} Qe7 {[%emt 0:00:39]} 35. Qxe7+ {[%emt 0:00:57]} Kxe7 {[%emt 0:00:01]} 36. cxb6 {[%emt 0:00:17]} Kf6 {[%emt 0:00:41]} 37. g4 {[%emt 0:00:50]} Kg7 {[%emt 0:00:03]} 38. Nxf5+ {[%emt 0:00:45]} gxf5 {[%emt 0:00:04]} 39. gxf5 {[%emt 0:00:09]} Rd2 {[%emt 0:01:13]} 40. Na4 {[%emt 0:00:00]} Rd1+ {[%emt 0:00:00]} 41. Kf2 {[%emt 0:00:33]} Rb1 {[%emt 0:00:56]} 0-1